bitfinex-derivatives/quotes_ETHF0:USTF0_20250421
["timestamp","ask_amount","ask_price","bid_price","bid_amount"]
[1745253245309,1.23811,1615.0,1614.9,4.44592]
[1745253245712,1.23808,1615.1,1615.0,1.23811]
[1745253245903,1.24723558,1615.2,1615.1,1.23804]
[1745253247006,0.00927558,1615.2,1615.1,4.44584]
[1745253247708,6.78986917,1615.9,1615.1,4.44584]
[1745253247915,7.40102,1615.7,1615.6,1.23765]
[1745253248107,2.94602,1615.7,1615.6,4.44545]
[1745253248310,2.94602,1615.7,1615.5,1.6902]
[1745253248510,2.94602,1615.7,1615.5,2.92787]
[1745253248707,1.23765,1615.6,1615.5,2.92787]
[1745253249007,0.00927558,1615.8,1615.5,1.6902]
[1745253249210,0.00927558,1615.8,1615.7,4.44538]
[1745253249414,1.24677558,1615.8,1615.7,3.2078]
[1745253249611,1.24677558,1615.8,1615.5,3.007]
[1745253249612,0.00927558,1615.8,1615.6,1.23761]
[1745253249812,1.24683558,1615.8,1615.7,1.643]
[1745253250203,1.24683558,1615.8,1615.7,4.8508]
[1745253250612,1.24683558,1615.8,1615.7,6.08838]
[1745253251310,1.24683558,1615.8,1615.7,4.8508]
[1745253251512,1.23765,1615.6,1615.5,5.7623]
[1745253251809,1.23796,1615.2,1615.1,4.44582]
[1745253252111,1.23811,1615.0,1614.9,4.8508]
[1745253252416,1.23827,1614.8,1614.7,4.44611]
[1745253252707,7.6618,1614.9,1614.4,21.87505946]
[1745253252905,1.2385,1614.5,1614.4,20.46095946]
[1745253253410,9.4463,1614.5,1614.4,11.90478621]
[1745253253608,11.2457,1614.5,1614.4,11.90478621]
[1745253253815,11.34251783,1614.5,1614.4,11.90478621]
[1745253254009,11.2457,1614.5,1614.4,11.90478621]
[1745253254915,6.2457,1614.5,1614.4,11.90478621]
[1745253255116,10.6997,1614.5,1614.4,11.90478621]
[1745253255415,1.23857,1614.4,1614.3,0.00927558]
[1745253255609,3.03797,1614.4,1614.3,0.00927558]
[1745253258211,1.23857,1614.4,1614.3,0.00927558]
[1745253258816,6.23857,1614.4,1614.3,0.00927558]
[1745253259014,2.98827,1614.4,1614.3,0.00927558]
[1745253264717,1.23857,1614.4,1614.3,1.24792558]
[1745253264914,1.23854,1614.5,1614.4,1.23851]
[1745253265212,1.6506,1614.7,1614.4,1.7239]
[1745253265418,1.6506,1614.7,1614.5,4.44627]
[1745253265419,1.2385,1614.6,1614.5,4.44627]
[1745253265723,1.2385,1614.6,1614.5,4.4463]
[1745253266213,1.2385,1614.6,1614.5,3.2078]
[1745253266410,1.2385,1614.6,1614.5,4.4463]
[1745253266621,1.2385,1614.6,1614.5,6.1702]
[1745253268622,1.23842,1614.7,1614.6,1.23838]
[1745253269714,1.23842,1614.6,1614.5,6.17013]
[1745253271817,1.2384,1614.7,1614.6,1.23837]
[1745253272222,1.2384,1614.7,1614.6,2.54047]
[1745253272412,1.2384,1614.7,1614.6,1.3021]
[1745253272616,3.0198,1614.7,1614.6,1.3021]
[1745253272922,1.23842,1614.6,1614.5,6.17013]
[1745253276818,7.56096558,1614.8,1614.5,4.9317]
[1745253277019,1.23842,1614.6,1614.5,6.17012]
[1745253277217,5.70359558,1614.8,1614.7,1.23834]
[1745253277418,0.00927558,1614.8,1614.7,4.44614]
[1745253277722,0.00927558,1614.8,1614.7,11.19654]
[1745253279025,0.00927558,1614.8,1614.7,6.19654]
[1745253279224,1.23805,1615.1,1615.0,1.23804]
[1745253279724,1.23811,1615.0,1614.9,6.19633]
[1745253279927,1.23811,1615.0,1614.9,4.44593]
[1745253280110,1.23811,1615.0,1614.9,3.2078]
[1745253280312,1.23811,1615.0,1614.7,3.2078]
[1745253280313,1.23827,1614.8,1614.7,3.2078]
[1745253280521,4.81109,1614.9,1614.6,1.23838]
[1745253280725,1.23841,1614.7,1614.6,1.23838]
[1745253280926,1.23841,1614.7,1614.6,4.44618]
[1745253281327,1.23841,1614.7,1614.6,3.2078]
[1745253281526,1.23841,1614.7,1614.6,4.44622]
[1745253282527,1.23841,1614.7,1614.6,3.2078]
[1745253283025,1.23842,1614.6,1614.5,1.2839]
[1745253283227,1.23847,1614.6,1614.5,1.23846]
[1745253283722,1.23838,1614.7,1614.6,1.23842]
[1745253284030,0.00927558,1615.1,1614.7,3.09586]
[1745253284233,1.23811,1615.0,1614.9,4.44599]
[1745253284731,1.23811,1615.0,1614.9,3.2078]
[1745253287418,1.23811,1615.0,1614.9,4.44599]
[1745253287824,3.04815558,1615.1,1615.0,1.23811]
[1745253288026,1.24735558,1615.1,1615.0,1.23811]
[1745253288730,1.23811,1615.0,1614.9,4.44591]
[1745253289918,1.23811,1615.0,1614.9,3.2078]
[1745253291520,1.23811,1615.0,1614.9,4.44599]
[1745253291722,3.03401,1615.0,1614.9,4.44599]
[1745253291924,3.03401,1615.0,1614.9,3.2078]
[1745253292731,3.03401,1615.0,1614.9,4.44599]
[1745253292928,3.03401,1615.0,1614.9,3.2078]
[1745253294737,1.23819,1614.9,1614.8,4.01732]
[1745253294934,1.23819,1614.9,1614.8,7.22512]
[1745253296036,3.10437558,1615.1,1615.0,1.23811]
[1745253296037,1.24736558,1615.1,1615.0,1.23811]
[1745253296531,0.00927558,1615.1,1615.0,1.23811]
[1745253296739,0.00927558,1615.1,1615.0,6.21811]
[1745253298539,0.00927558,1615.1,1615.0,11.21811]
[1745253299637,0.00927558,1615.1,1615.0,6.21811]
[1745253300634,1.24731558,1615.1,1615.0,4.98]
[1745253301033,1.23819,1614.9,1614.8,11.70211]
[1745253301231,1.23819,1614.9,1614.8,8.97077]
[1745253301842,1.23819,1614.9,1614.8,7.7325]
[1745253302040,1.23819,1614.9,1614.8,8.97077]
[1745253302642,2.94186,1615.0,1614.9,1.23819]
[1745253302844,2.94186,1615.0,1614.9,3.01939]
[1745253303546,1.23819,1614.9,1614.8,3.2078]
[1745253303746,2.91669,1614.9,1614.8,3.2078]
[1745253304145,1.23827,1614.8,1614.7,1.7812]
[1745253304444,2.91677,1614.8,1614.7,1.7812]
[1745253304642,2.91677,1614.8,1614.7,3.01954]
[1745253305446,2.91677,1614.8,1614.7,1.7812]
[1745253305945,2.91677,1614.8,1614.7,3.01954]
[1745253306346,2.91677,1614.8,1614.7,1.7812]
[1745253306740,1.23834,1614.7,1614.6,3.2078]
[1745253306940,1.23857,1614.4,1614.3,4.45569558]
[1745253307140,7.5142,1614.7,1614.3,4.45569558]
[1745253307348,7.5142,1614.7,1614.5,4.44622]
[1745253307349,1.23842,1614.6,1614.5,4.44622]
[1745253308143,1.2385,1614.5,1614.4,1.6351]
[1745253308335,2.9674,1614.5,1614.4,1.6351]
[1745253309845,1.23857,1614.4,1614.3,3.21707558]
[1745253310149,2.96747,1614.4,1614.3,0.00927558]
[1745253310849,7.36047,1614.4,1614.3,0.00927558]
[1745253311044,1.2388,1614.1,1614.0,6.22682]
[1745253311248,1.2388,1614.1,1614.0,3.01902]
[1745253311445,1.2388,1614.1,1614.0,6.22682]
[1745253311752,2.90099,1614.2,1614.1,1.2388]
[1745253311948,2.90099,1614.2,1614.1,3.019]
[1745253312342,2.66386558,1614.3,1614.2,1.23873]
[1745253312542,1.24792558,1614.3,1614.2,1.7802]
[1745253312948,2.91012558,1614.3,1614.2,1.7802]
[1745253314149,1.2388,1614.1,1614.0,3.21707558]
[1745253315048,8.8396,1614.1,1614.0,0.00927558]
[1745253315245,16.4769,1614.1,1614.0,0.00927558]
[1745253315448,16.57353677,1614.1,1614.0,5.58e-06]
[1745253315957,18.26663176,1614.1,1614.0,5.58e-06]
[1745253316960,3.09798,1613.6,1613.2,3.2078]
[1745253317152,1.8039,1613.5,1613.2,4.8573]
[1745253317352,5.63225,1613.6,1613.4,4.44707]
[1745253317548,5.63225,1613.6,1613.5,1.6495]
[1745253317752,6.1969,1613.6,1613.2,4.44724]
[1745253317952,1.23942,1613.3,1613.2,6.09674]
[1745253318158,1.23942,1613.3,1613.2,3.21707558]
[1745253319459,7.43727,1613.4,1613.2,3.21707558]
[1745253319759,7.43727,1613.4,1613.2,4.45651558]
[1745253320248,1.23942,1613.3,1613.2,0.00927558]
[1745253320746,9.33282,1613.3,1613.2,5.58e-06]
[1745253320946,9.42943599,1613.3,1613.2,5.58e-06]
[1745253322353,8.72782,1613.3,1613.2,5.58e-06]
[1745253322549,8.72782,1613.3,1613.2,1.23949558]
[1745253322750,3.0934,1613.3,1613.2,1.23949558]
[1745253322961,1.7926,1613.3,1613.2,1.23949558]
[1745253323354,5.63439,1613.4,1613.3,1.23942]
[1745253323561,1.23942,1613.3,1613.2,1.23943558]
[1745253324560,2.93422,1613.3,1613.2,1.23943558]
[1745253325052,2.93422,1613.3,1613.2,5.58e-06]
[1745253325748,2.93422,1613.3,1613.2,1.23949558]
[1745253326155,2.93422,1613.3,1613.2,5.58e-06]
[1745253326355,4.24692,1613.3,1613.2,5.58e-06]
[1745253327773,4.24692,1613.3,1613.2,1.23949558]
[1745253327974,4.24692,1613.3,1613.2,5.58e-06]
[1745253328167,4.24692,1613.3,1613.2,1.23949558]
[1745253328476,2.93422,1613.3,1613.2,4.44729558]
[1745253328970,5.63533,1613.5,1613.4,1.23933]
[1745253329169,5.63533,1613.5,1613.4,3.2078]
[1745253329375,5.63533,1613.5,1613.3,2.6731]
[1745253329376,1.23934,1613.4,1613.3,2.6731]
[1745253329673,3.03914,1613.4,1613.3,2.6731]
[1745253329975,1.23942,1613.3,1613.2,4.44729558]
[1745253332574,9.29414,1613.5,1613.3,1.23939]
[1745253332784,1.23941,1613.4,1613.3,1.23934]
[1745253333076,1.23942,1613.3,1613.2,4.44725558]
[1745253333476,1.23942,1613.3,1613.2,3.20780558]
[1745253333672,1.23942,1613.3,1613.2,4.44729558]
[1745253334584,1.23937,1613.4,1613.3,1.23942]
[1745253334877,5.63531,1613.5,1613.4,1.23934]
[1745253335480,4.396,1613.5,1613.4,1.23934]
[1745253335681,1.76007558,1613.6,1613.5,1.23926]
[1745253335883,6.15307558,1613.6,1613.5,1.23926]
[1745253336182,4.40227558,1613.6,1613.5,1.23926]
[1745253336480,0.00927558,1613.6,1613.5,2.90296]
[1745253337179,1.24846558,1613.6,1613.5,2.90296]
[1745253337980,1.24846558,1613.6,1613.5,1.6637]
[1745253338182,2.97306558,1613.6,1613.5,1.6637]
[1745253338381,0.00927558,1613.6,1613.5,2.90296]
[1745253338979,1.24846558,1613.6,1613.5,2.90296]
[1745253339286,0.00927558,1613.6,1613.5,2.90296]
[1745253339884,1.24846558,1613.6,1613.5,1.6637]
[1745253340180,1.24846558,1613.6,1613.5,2.90296]
[1745253340885,0.00927558,1613.6,1613.5,2.90296]
[1745253341085,1.24846558,1613.6,1613.5,2.90296]
[1745253343780,0.00927558,1613.6,1613.5,2.90296]
[1745253344079,1.24846558,1613.6,1613.5,2.90296]
[1745253345775,1.24846558,1613.6,1613.5,1.6637]
[1745253345974,0.00927558,1613.6,1613.5,2.90296]
[1745253346782,6.30474,1614.2,1613.7,3.09773]
[1745253346987,1.23893,1614.0,1613.9,4.4467]
[1745253347188,1.23893,1614.0,1613.9,6.1063]
[1745253347384,1.23893,1614.0,1613.9,1.6596]
[1745253347580,1.23903,1613.8,1613.7,3.2078]
[1745253348388,1.23903,1613.8,1613.7,4.8557]
[1745253348891,1.23903,1613.8,1613.7,6.09481]
[1745253349284,1.23903,1613.8,1613.7,4.8557]
[1745253349487,1.23903,1613.8,1613.7,6.09481]
[1745253349690,1.23903,1613.8,1613.7,4.8557]
[1745253349993,1.23903,1613.8,1613.7,6.09481]
[1745253350290,1.23903,1613.8,1613.7,4.8557]
[1745253350791,1.23903,1613.8,1613.7,6.09481]
[1745253353697,1.24829558,1613.9,1613.8,1.23903]
[1745253353991,1.24829558,1613.9,1613.8,3.03853]
[1745253354292,1.24829558,1613.9,1613.8,1.7995]
[1745253354493,2.88059558,1613.9,1613.8,1.7995]
[1745253355392,1.24829558,1613.9,1613.8,3.03853]
[1745253356991,1.24829558,1613.9,1613.8,1.7995]
[1745253358293,1.24829558,1613.9,1613.8,3.03853]
[1745253359197,1.24829558,1613.9,1613.8,1.7995]
[1745253359398,1.24829558,1613.9,1613.8,5.0073]
[1745253360095,3.00219558,1613.9,1613.8,5.0073]
[1745253360394,3.09817,1613.5,1613.0,10.69891]
[1745253360599,1.23942,1613.3,1613.2,4.44729558]
[1745253360803,1.23942,1613.3,1613.2,6.25999558]
[1745253361095,7.5998,1613.6,1613.3,1.23942]
[1745253361290,1.23918,1613.7,1613.6,1.23913]
[1745253361492,1.23918,1613.7,1613.6,4.44693]
[1745253361891,1.23918,1613.7,1613.6,1.23913]
[1745253362088,1.23918,1613.7,1613.6,3.05183]
[1745253362292,1.23918,1613.7,1613.6,1.8127]
[1745253362492,1.23918,1613.7,1613.6,3.05189]
[1745253362694,1.23918,1613.7,1613.6,1.8127]
[1745253363104,1.23918,1613.7,1613.6,3.05189]
[1745253363293,1.23918,1613.7,1613.6,1.8127]
[1745253363494,1.23918,1613.7,1613.6,3.05189]
[1745253363693,1.3919,1613.8,1613.7,1.23911]
[1745253363895,1.23903,1613.8,1613.7,6.12324]
[1745253364094,1.23903,1613.8,1613.7,1.6764]
[1745253364497,1.23903,1613.8,1613.7,2.91551]
[1745253365896,1.23903,1613.8,1613.7,6.12331]
[1745253368000,0.00927558,1613.9,1613.8,1.23903]
[1745253368198,0.00927558,1613.9,1613.8,2.93893]
[1745253368498,1.24823558,1613.9,1613.8,2.93893]
[1745253368998,1.24823558,1613.9,1613.8,1.6999]
[1745253369201,1.23903,1613.8,1613.7,3.2078]
[1745253369501,1.23911,1613.7,1613.6,2.88029]
[1745253370604,1.23911,1613.7,1613.6,1.6411]
[1745253371006,2.95301,1613.7,1613.6,2.88029]
[1745253371905,1.23919,1613.6,1613.5,7.07751]
[1745253372098,1.23926,1613.5,1613.4,4.391]
[1745253372302,1.23934,1613.4,1613.3,1.23937]
[1745253372502,1.23934,1613.4,1613.3,6.24987]
[1745253372697,1.7702,1613.7,1613.3,5.0105]
[1745253372901,1.23913,1613.7,1613.6,1.23911]
[1745253373201,1.23914,1613.7,1613.6,1.23912]
[1745253373508,1.23914,1613.7,1613.6,1.8027]
[1745253373706,3.00934,1613.7,1613.6,3.04189]
[1745253374205,4.44634,1614.5,1613.6,16.3310804]
[1745253374506,1.7702,1614.4,1614.0,9.4022]
[1745253374702,1.7702,1614.4,1614.3,1.23865]
[1745253374903,2.7659,1614.5,1614.4,1.23857]
[1745253375305,20.6616998,1614.6,1614.5,1.2385]
[1745253375518,21.90939538,1614.6,1614.5,1.6744]
[1745253375808,23.69519538,1614.6,1614.5,1.6744]
[1745253376107,22.45677538,1614.6,1614.5,1.6744]
[1745253376302,23.69519538,1614.6,1614.5,1.6744]
[1745253376605,23.69519538,1614.6,1614.3,3.21707558]
[1745253376911,23.69519538,1614.6,1614.4,1.23854]
[1745253376912,1.7858,1614.5,1614.4,1.23854]
[1745253377202,1.23873,1614.2,1614.1,4.44659]
[1745253377407,1.2388,1614.2,1614.0,4.44665]
[1745253377596,4.39,1614.3,1614.2,1.23873]
[1745253378001,9.39,1614.3,1614.2,1.23873]
[1745253378410,9.39,1614.3,1614.1,0.00927558]
[1745253378609,4.39,1614.3,1614.1,0.00927558]
[1745253378809,1.23873,1614.2,1614.1,1.24805558]
[1745253379305,1.23873,1614.2,1614.1,0.00927558]
[1745253379906,7.5978,1614.3,1614.1,0.00927558]
[1745253379907,4.39,1614.3,1614.1,0.00927558]
[1745253380108,5.62871,1614.3,1614.2,1.23873]
[1745253380606,4.39,1614.3,1614.2,1.23873]
[1745253380801,2.6847,1614.4,1614.3,1.23865]
[1745253381008,4.39927558,1614.6,1614.4,1.23851]
[1745253381207,5.63774558,1614.6,1614.5,1.2385]
[1745253381799,4.39927558,1614.6,1614.5,1.2385]
[1745253382413,5.63769558,1614.6,1614.5,1.2385]
[1745253382608,0.00927558,1614.6,1614.5,1.2385]
[1745253382913,0.00927558,1614.6,1614.5,6.2385]
[1745253383112,0.00927558,1614.6,1614.5,2.6224]
[1745253383815,0.00927558,1614.6,1614.5,5.8302]
[1745253388109,0.00927558,1614.6,1614.5,10.8302]
[1745253388412,3.2078,1615.1,1615.0,1.23811]
[1745253388717,5.85431,1615.3,1615.2,1.23796]
[1745253389115,5.85431,1615.3,1615.0,2.87081]
[1745253389416,1.23809,1615.1,1615.0,1.23807]
[1745253389606,1.23809,1615.1,1615.0,1.24734558]
[1745253393122,1.23802,1615.2,1615.1,1.23797]
[1745253393715,0.00927558,1615.3,1615.2,1.23796]
[1745253393916,4.00735,1615.6,1615.5,1.23773]
[1745253394106,118.3394998,1615.9,1615.7,1.2375]
[1745253394309,1.23754,1615.8,1615.7,1.2375]
[1745253394514,1.23754,1615.8,1615.7,3.0194]
[1745253394918,23.4273998,1615.9,1615.8,1.2375]
[1745253395110,1.2375,1615.8,1615.7,3.01941]
[1745253395820,8.40345558,1615.9,1615.8,1.2375]
[1745253396117,0.00927558,1615.9,1615.8,3.038]
[1745253396313,0.00927558,1615.9,1615.8,6.2458]
[1745253396517,18.41623873,1616.0,1615.9,1.23742]
[1745253396716,18.41623873,1616.0,1615.9,4.45102]
[1745253396918,18.41623873,1616.0,1615.9,5.82942]
[1745253397718,3.09374,1615.9,1615.2,3.09491]
[1745253398030,1.23762,1615.7,1615.6,1.23765]
[1745253398221,1.23758,1615.7,1615.6,1.8005]
[1745253398522,1.6962,1615.8,1615.6,3.03815]
[1745253398819,1.23758,1615.7,1615.6,1.8005]
[1745253399514,1.23773,1615.5,1615.3,4.44563]
[1745253399715,1.23773,1615.5,1615.4,1.7851]
[1745253400314,1.23773,1615.5,1615.4,3.02291]
[1745253400509,1.23773,1615.5,1615.4,1.7851]
[1745253400919,1.23788,1615.3,1615.2,1.3784]
[1745253401222,1.23788,1615.3,1615.2,3.1635]
[1745253401414,1.23788,1615.3,1615.2,1.7851]
[1745253402425,1.23788,1615.3,1615.2,3.02306]
[1745253402626,4.385,1615.6,1615.2,9.87992]
[1745253402918,4.4337,1615.9,1615.5,1.23773]
[1745253403126,1.23762,1615.7,1615.6,1.7356]
[1745253403526,2.98892,1615.7,1615.6,1.7356]
[1745253404114,1.7513,1615.7,1615.6,2.97325]
[1745253404318,3.2078,1616.0,1615.8,1.23748]
[1745253404528,3.2078,1616.0,1615.9,1.23742]
[1745253404721,1.24659558,1616.1,1616.0,1.23735]
[1745253405418,1.23735,1616.0,1615.9,4.27933558]
[1745253406321,3.04570558,1616.1,1616.0,1.23735]
[1745253406525,1.23735,1616.0,1615.9,2.63392558]
[1745253407129,3.04569558,1616.1,1616.0,1.23735]
[1745253407332,0.00927558,1616.1,1616.0,4.44515]
[1745253407519,0.00927558,1616.1,1616.0,1.23735]
[1745253408126,1.24654558,1616.1,1616.0,1.23735]
[1745253408825,0.00927558,1616.1,1616.0,1.23735]
[1745253409128,0.00927558,1616.1,1616.0,4.44515]
[1745253409928,1.24654558,1616.1,1616.0,4.44515]
[1745253410123,2.90424558,1616.1,1616.0,3.2078]
[1745253410329,2.90424558,1616.1,1616.0,4.44515]
[1745253410530,0.00927558,1616.1,1616.0,4.44515]
[1745253411924,0.00927558,1616.1,1616.0,5.74725]
[1745253412827,2.57047,1616.4,1616.3,1.23712]
[1745253413228,4.384,1616.6,1616.3,3.09271]
[1745253413433,1.23703,1616.5,1616.4,1.23701]
[1745253413729,1.237,1616.5,1616.4,1.23699]
[1745253414326,3.0368,1616.5,1616.4,1.23699]
[1745253416235,1.23704,1616.4,1616.3,2.62465]
[1745253416432,1.23712,1616.3,1616.2,4.44495]
[1745253416630,3.03692,1616.3,1616.2,4.44499]
[1745253417433,1.23712,1616.3,1616.2,4.44499]
[1745253417640,1.23712,1616.3,1616.2,1.23719]
[1745253419038,1.7051,1616.4,1616.3,1.23712]
[1745253419238,1.23709,1616.4,1616.3,1.23712]
[1745253420342,2.94212,1616.5,1616.4,1.23704]
[1745253420732,4.79754,1616.5,1616.2,3.2078]
[1745253421040,1.23712,1616.3,1616.2,4.44494]
[1745253421241,2.96809,1616.4,1616.3,1.23712]
[1745253422342,1.23712,1616.3,1616.2,3.2078]
[1745253422540,5.76442,1616.3,1616.2,3.2078]
[1745253422845,1.23727,1616.1,1616.0,3.95978]
[1745253423340,2.96823,1616.2,1616.1,1.23727]
[1745253425344,1.731,1616.2,1616.1,1.23727]
[1745253425544,4.03347,1616.3,1616.2,1.23719]
[1745253425746,5.82317,1616.3,1616.2,1.23719]
[1745253426244,3.18,1616.3,1616.2,1.23719]
[1745253426446,3.18,1616.3,1616.2,3.00349]
[1745253426645,4.41712,1616.3,1616.2,3.00349]
[1745253426841,3.18,1616.3,1616.2,3.00349]
[1745253427240,4.4449,1616.4,1616.3,1.23712]
[1745253427544,4.4449,1616.4,1616.3,3.00342]
[1745253428136,3.2078,1616.4,1616.3,3.00342]
[1745253428539,1.23704,1616.4,1616.3,1.23712]
[1745253428742,1.23712,1616.3,1616.2,3.00344]
[1745253429042,1.2371,1616.4,1616.3,1.23712]
[1745253429246,1.2371,1616.4,1616.3,3.00342]
[1745253430242,1.23719,1616.2,1616.1,4.44505]
[1745253430445,1.23727,1616.1,1616.0,3.1526]
[1745253430639,1.23735,1616.0,1615.9,1.24669558]
[1745253430946,2.62985,1616.2,1616.1,1.23727]
[1745253431146,3.02519,1616.2,1616.1,1.23727]
[1745253431549,1.788,1616.2,1616.1,1.23727]
[1745253431849,1.3844,1616.3,1616.2,1.23719]
[1745253432146,2.62152,1616.3,1616.2,2.96939]
[1745253432348,4.40952,1616.3,1616.2,2.96939]
[1745253433250,4.40952,1616.3,1616.2,1.7322]
[1745253433453,4.40952,1616.3,1616.2,2.96939]
[1745253433639,4.44485,1616.4,1616.3,1.23712]
[1745253433839,4.44485,1616.4,1616.3,1.23705]
[1745253433840,1.23707,1616.4,1616.3,1.23705]
[1745253434043,1.23707,1616.4,1616.3,1.23712]
[1745253434251,1.23712,1616.3,1616.2,2.96935]
[1745253435453,1.23719,1616.2,1616.1,5.84851]
[1745253435658,1.23718,1616.3,1616.2,1.23715]
[1745253436045,1.23718,1616.3,1616.2,2.87785]
[1745253436440,2.9313,1616.4,1616.3,1.23712]
[1745253436646,1.23712,1616.3,1616.2,2.87785]
[1745253436840,1.23712,1616.3,1615.9,3.21707558]
[1745253436841,6.0762,1616.3,1615.9,3.21707558]
[1745253437052,1.23735,1616.0,1615.9,3.21707558]
[1745253437252,1.23735,1616.0,1615.9,0.00927558]
[1745253437856,2.93155,1616.0,1615.9,0.00927558]
[1745253438853,1.6942,1616.0,1615.9,1.24669558]
[1745253439058,4.9544,1616.1,1616.0,1.23735]
[1745253439247,1.3465,1616.2,1616.1,1.23727]
[1745253439550,4.33029,1616.2,1616.1,1.23727]
[1745253440252,4.33029,1616.2,1616.1,2.91227]
[1745253440441,3.0931,1616.2,1616.1,2.91227]
[1745253440646,1.23713,1616.3,1616.2,1.23712]
[1745253440843,5.7429,1616.4,1616.2,2.91212]
[1745253441045,1.23712,1616.3,1616.2,1.675]
[1745253441248,2.98372,1616.3,1616.2,2.91219]
[1745253442654,1.23712,1616.3,1616.2,2.91219]
[1745253444356,3.04668,1616.4,1616.3,1.23712]
[1745253444661,0.00613887,1616.6,1616.3,1.6346]
[1745253444849,0.00613887,1616.6,1616.5,1.23696]
[1745253445050,0.00613887,1616.6,1616.5,4.31186]
[1745253445959,1.24302887,1616.6,1616.5,4.31186]
[1745253446261,0.00613887,1616.6,1616.5,4.31186]
[1745253448563,1.23675,1616.8,1616.7,1.23675]
[1745253448859,2.92433,1616.9,1616.8,1.23673]
[1745253449058,2.7112,1617.0,1616.9,1.23666]
[1745253449265,1.6876,1617.1,1617.0,1.23658]
[1745253450252,1.6876,1617.1,1617.0,3.04458]
[1745253450458,4.382,1617.2,1617.1,1.2365]
[1745253450662,22.2928998,1617.2,1617.1,2.93]
[1745253451256,17.9108998,1617.2,1617.1,2.93]
[1745253451459,16.2706998,1617.2,1617.1,6.1378]
[1745253452165,16.2706998,1617.2,1617.1,1.2365]
[1745253452358,17.9108998,1617.2,1617.1,1.2365]
[1745253454161,16.2706998,1617.2,1617.1,4.4443]
[1745253454655,7.70211425,1617.2,1617.1,4.4443]
[1745253454859,3.0333,1617.5,1617.4,1.23628]
[1745253457361,7.70211425,1617.6,1617.5,1.2362]
[1745253457567,7.70211425,1617.6,1617.5,4.444]
[1745253458263,3.0714,1617.7,1617.6,1.23612]
[1745253458570,3.0714,1617.7,1617.6,3.02312]
[1745253459870,7.5868,1618.0,1617.9,1.23589]
[1745253460072,16.7796,1618.0,1617.8,1.2359]
[1745253460273,1.7448,1617.9,1617.8,1.24517558]
[1745253460768,2.98069,1617.9,1617.8,1.24517558]
[1745253460963,1.7448,1617.9,1617.8,1.24517558]
[1745253461268,2.53782,1618.0,1617.9,1.23589]
[1745253461670,1.302,1618.0,1617.9,1.23589]
[1745253462070,2.53782,1618.0,1617.9,1.23589]
[1745253462271,1.302,1618.0,1617.9,1.23589]
[1745253462667,2.53782,1618.0,1617.9,1.23589]
[1745253462877,7.05789,1618.1,1618.0,1.23582]
[1745253463076,2.67884,1618.1,1618.0,1.23582]
[1745253463373,1.23582,1618.0,1617.9,1.23582]
[1745253464175,7.38182,1618.0,1617.9,1.23582]
[1745253464678,1.23589,1617.9,1617.8,1.24520558]
[1745253464869,1.23589,1617.9,1617.6,1.23612]
[1745253464870,1.23612,1617.7,1617.6,1.23612]
[1745253465175,1.23612,1617.6,1617.5,2.91403]
[1745253465377,1.23612,1617.6,1617.5,1.23613]
[1745253465587,1.2362,1617.5,1617.4,2.91411]
[1745253465774,1.2362,1617.5,1617.3,3.2078]
[1745253465978,1.23628,1617.4,1617.3,4.44409]
[1745253466678,2.58803,1617.5,1617.4,1.23628]
[1745253467273,2.58803,1617.5,1617.3,4.8812]
[1745253467274,1.23628,1617.4,1617.3,4.44412]
[1745253467779,1.24539558,1617.6,1617.5,1.2362]
[1745253468475,0.00927558,1617.6,1617.5,1.2362]
[1745253468679,0.00927558,1617.6,1617.5,4.444]
[1745253469068,0.00927558,1617.6,1617.5,6.0761]
[1745253470072,1.24539558,1617.6,1617.5,6.0761]
[1745253470274,1.24539558,1617.6,1617.5,2.8683]
[1745253470880,0.00927558,1617.6,1617.5,2.8683]
[1745253471080,1.24539558,1617.6,1617.5,2.8683]
[1745253471479,0.00927558,1617.6,1617.5,6.0761]
[1745253473484,1.24539558,1617.6,1617.5,6.0761]
[1745253474079,0.00927558,1617.6,1617.5,6.0761]
[1745253476285,1.24539558,1617.6,1617.5,6.0761]
[1745253476790,1.2362,1617.5,1617.4,1.23624]
[1745253476983,3.0346,1617.5,1617.4,1.23624]
[1745253477178,1.23628,1617.4,1617.3,2.8993]
[1745253477399,3.03468,1617.4,1617.3,2.8993]
[1745253477583,1.7984,1617.4,1617.3,2.8993]
[1745253478581,3.03468,1617.4,1617.3,2.8993]
[1745253479093,1.7984,1617.4,1617.3,2.8993]
[1745253479494,3.03468,1617.4,1617.3,2.8993]
[1745253479991,1.23635,1617.3,1617.2,3.21707558]
[1745253480202,2.87905,1617.3,1617.2,0.00927558]
[1745253481080,1.23666,1616.9,1616.8,5.76968]
[1745253481281,1.23661,1617.0,1616.9,1.2366]
[1745253481480,2.94711,1617.0,1616.9,2.9017]
[1745253481887,2.94711,1617.0,1616.9,1.6651]
[1745253482191,1.23666,1616.9,1616.8,3.21707558]
[1745253482394,1.23666,1616.9,1616.8,4.45380558]
[1745253482395,4.34496,1616.9,1616.8,4.45380558]
[1745253482891,1.23663,1617.0,1616.9,1.23666]
[1745253483094,8.65568,1617.1,1617.0,1.23658]
[1745253483589,8.65568,1617.1,1616.9,2.9017]
[1745253483590,1.23658,1617.0,1616.9,2.9017]
[1745253483788,1.23666,1616.9,1616.8,4.45377558]
[1745253483990,2.63446,1616.9,1616.8,4.45377558]
[1745253484394,1.7105,1617.0,1616.9,1.23666]
[1745253484593,1.7105,1617.0,1616.9,2.94076]
[1745253484896,5.7086,1617.1,1617.0,1.23658]
[1745253485093,6.9451,1617.1,1617.0,2.94068]
[1745253485295,8.6384,1617.1,1617.0,2.94068]
[1745253486492,8.6384,1617.1,1616.9,1.23664]
[1745253486493,1.23666,1617.0,1616.9,1.23664]